fUSD/lending_fUSD_20250223
["ID","MTS","AMOUNT","RATE_DAILY","PERIOD"]
[354206440,1740347453855,-1127.4,0.0001652,2]
[354206441,1740347453866,-500.0,0.0001652,2]
[354206442,1740347453877,-1180.85,0.0001652,2]
[354206443,1740347453887,-500.0,0.0001652,2]
[354206444,1740347453896,-874.58,0.0001652,2]
[354206445,1740347453906,-1170.11,0.0001652,2]
[354206446,1740347453921,-4876.01,0.0001652,2]
[354206447,1740347453935,-500.0,0.0001652,2]
[354206448,1740347453944,-3889.87,0.0001652,2]
[354206449,1740347453954,-500.0,0.0001652,2]
[354206450,1740347453963,-674.46,0.0001652,2]
[354206451,1740347453973,-3282.88,0.0001652,2]
[354206452,1740347453983,-500.0,0.0001652,2]
[354206453,1740347453993,-1702.27,0.0001652,2]
[354206454,1740347454003,-500.0,0.0001652,2]
[354206455,1740347454012,-500.0,0.0001652,2]
[354206456,1740347454023,-500.0,0.0001652,2]
[354206457,1740347454032,-3283.64,0.0001652,2]
[354206458,1740347454042,-1859.12,0.0001652,2]
[354206459,1740347454051,-2933.16,0.0001652,2]
[354206460,1740347454188,-500.0,0.0001652,2]
[354206461,1740347454198,-371.99165516,0.0001652,2]
[354206462,1740347454207,-2901.82,0.0001652,2]
[354206463,1740347454216,-500.0,0.0001652,2]
[354206464,1740347454225,-500.0,0.0001652,2]
[354206465,1740347454234,-832.99,0.0001652,2]
[354206466,1740347454243,-3268.72,0.0001652,2]
[354206467,1740347454253,-500.0,0.0001652,2]
[354206468,1740347454263,-891.22,0.0001652,2]
[354206469,1740347454272,-3979.78,0.0001652,2]
[354206470,1740347454281,-3239.78,0.0001652,2]
[354206471,1740347454290,-500.0,0.0001652,2]
[354206472,1740347454299,-754.83,0.0001652,2]
[354206473,1740347454312,-2197.18,0.0001652,2]
[354206474,1740347454321,-4217.38,0.0001652,2]
[354206475,1740347454330,-508.56237869,0.0001652,2]
[354206476,1740347454339,-2864.45,0.0001652,2]
[354206477,1740347454348,-500.49,0.0001652,2]
[354206478,1740347454358,-500.0,0.0001652,2]
[354206479,1740347454367,-3294.78,0.0001652,2]
[354206480,1740347454376,-931.45,0.0001652,2]
[354206481,1740347454387,-3325.92,0.0001652,2]
[354206482,1740347454396,-500.0,0.0001652,2]
[354206483,1740347454405,-3492.62,0.0001652,2]
[354206484,1740347454415,-3731.23,0.0001652,2]
[354206485,1740347454424,-1425.71,0.0001652,2]
[354206486,1740347454434,-1935.9,0.0001652,2]
[354206487,1740347454443,-510.24,0.0001652,2]
[354206488,1740347454452,-1444.47,0.0001652,2]
[354206489,1740347454461,-500.0,0.0001652,2]
[354206490,1740347454470,-500.0,0.0001652,2]
[354206491,1740347454479,-500.0,0.0001652,2]
[354206492,1740347454488,-524.85,0.0001652,2]
[354206493,1740347454497,-1237.95,0.0001652,2]
[354206494,1740347454507,-500.0,0.0001652,2]
[354206495,1740347454516,-500.0,0.0001652,2]
[354206496,1740347454525,-1544.71,0.0001652,2]
[354206497,1740347454534,-500.0,0.0001652,2]
[354206498,1740347454543,-4354.52,0.0001652,2]
[354206499,1740347454552,-500.0,0.0001652,2]
[354206500,1740347454561,-5192.52,0.0001652,2]
[354206501,1740347454571,-274.58042911,0.0001652,2]
[354206502,1740347454579,-3427.23,0.0001652,2]
[354206503,1740347454588,-500.0,0.0001652,2]
[354206504,1740347454597,-1489.86,0.0001652,2]
[354206505,1740347454607,-559.23545734,0.0001652,2]
[354206506,1740347454620,-1220.56,0.0001652,2]
[354206507,1740347454629,-560.09,0.0001652,2]
[354206508,1740347454639,-2541.51,0.0001652,2]
[354206509,1740347454650,-438.95729888,0.0001652,2]
[354206510,1740347454660,-7089.94,0.0001652,2]
[354206511,1740347454669,-560.09,0.0001652,2]
[354206512,1740347454679,-762.01,0.0001652,2]
[354206513,1740347454689,-1796.5,0.0001652,2]
[354206514,1740347454700,-500.0,0.0001652,2]
[354206515,1740347454711,-500.0,0.0001652,2]
[354206516,1740347454720,-1741.79,0.0001652,2]
[354206517,1740347454730,-2736.56,0.0001652,2]
[354206518,1740347454740,-1710.1,0.0001652,2]
[354206519,1740347454750,-500.0,0.0001652,2]
[354206520,1740347454759,-605.06,0.0001652,2]
[354206521,1740347454768,-500.0,0.0001652,2]
[354206522,1740347454777,-500.0,0.0001652,2]
[354206523,1740347454787,-1497.13,0.0001652,2]
[354206524,1740347454797,-1141.32,0.0001652,2]
[354206525,1740347454808,-500.0,0.0001652,2]
[354206526,1740347454818,-764.0,0.0001652,2]
[354206527,1740347454827,-985.64,0.0001652,2]
[354206528,1740347454836,-3420.68,0.0001652,2]
[354206529,1740347454845,-500.0,0.0001652,2]
[354206530,1740347454854,-4319.67,0.0001652,2]
[354206531,1740347454863,-500.0,0.0001652,2]
[354206532,1740347454873,-3817.97,0.0001652,2]
[354206533,1740347454881,-500.0,0.0001652,2]
[354206534,1740347454891,-1112.13,0.0001652,2]
[354206535,1740347454900,-1178.86,0.0001652,2]
[354206536,1740347454909,-277.10520453,0.0001652,2]
[354206537,1740347454918,-3517.37,0.0001652,2]
[354206538,1740347454927,-699.7,0.0001652,2]
[354206539,1740347454936,-500.0,0.0001652,2]
[354206540,1740347454945,-510.22230608,0.0001652,2]
[354206541,1740347454954,-868.2,0.0001652,2]
[354206542,1740347454963,-500.0,0.0001652,2]
[354206543,1740347454972,-500.0,0.0001652,2]
[354206544,1740347454981,-752.13,0.0001652,2]
[354206545,1740347454990,-1361.76,0.0001652,2]
[354206546,1740347454999,-500.0,0.0001652,2]
[354206547,1740347455008,-6139.95,0.0001652,2]
[354206548,1740347455017,-500.0,0.0001652,2]
[354206549,1740347455026,-2341.16,0.0001652,2]
[354206550,1740347455035,-500.0,0.0001652,2]
[354206551,1740347455045,-500.0,0.0001652,2]
[354206552,1740347455054,-1030.06,0.0001652,2]
[354206553,1740347455063,-500.0,0.0001652,2]
[354206554,1740347455072,-4636.31,0.0001652,2]
[354206555,1740347455081,-2024.97,0.0001652,2]
[354206556,1740347455090,-500.0,0.0001652,2]
[354206557,1740347455099,-602.65,0.0001652,2]
[354206558,1740347455108,-500.0,0.0001652,2]
[354206559,1740347455117,-500.0,0.0001652,2]
[354206560,1740347455125,-500.0,0.0001652,2]
[354206561,1740347455134,-4008.4,0.0001652,2]
[354206562,1740347455143,-500.0,0.0001652,2]
[354206563,1740347455152,-500.0,0.0001652,2]
[354206564,1740347455161,-5257.18,0.0001652,2]
[354206565,1740347455170,-500.0,0.0001652,2]
[354206566,1740347455179,-2670.71,0.0001652,2]
[354206567,1740347455189,-1420.27,0.0001652,2]
[354206568,1740347455198,-2255.17,0.0001652,2]
[354206569,1740347455207,-669.52,0.0001652,2]
[354206570,1740347455215,-1172.75,0.0001652,2]
[354206571,1740347455224,-554.78393679,0.0001652,2]
[354206572,1740347455233,-2319.74,0.0001652,2]
[354206573,1740347455242,-500.0,0.0001652,2]
[354206574,1740347455251,-600.22,0.0001652,2]
[354206575,1740347455260,-1355.62,0.0001652,2]
[354206576,1740347455269,-2337.39,0.0001652,2]
[354206577,1740347455278,-500.0,0.0001652,2]
[354206578,1740347455288,-2245.9,0.0001652,2]
[354206579,1740347455298,-500.0,0.0001652,2]
[354206580,1740347455310,-500.0,0.0001652,2]
[354206581,1740347455319,-806.5,0.0001652,2]
[354206582,1740347455328,-622.99,0.0001652,2]
[354206583,1740347455338,-2563.97,0.0001652,2]
[354206584,1740347455347,-500.0,0.0001652,2]
[354206585,1740347455356,-545.65,0.0001652,2]
[354206586,1740347455365,-2777.04,0.0001652,2]
[354206587,1740347455374,-500.0,0.0001652,2]
[354206588,1740347455384,-756.91,0.0001652,2]
[354206589,1740347455393,-1121.63,0.0001652,2]
[354206590,1740347455403,-500.0,0.0001652,2]
[354206591,1740347455416,-3310.42,0.0001652,2]
[354206592,1740347455425,-500.0,0.0001652,2]
[354206593,1740347455434,-573.62,0.0001652,2]
[354206594,1740347455443,-1291.7,0.0001652,2]
[354206595,1740347455453,-500.0,0.0001652,2]
[354206596,1740347455461,-1526.42,0.0001652,2]
[354206597,1740347455470,-500.0,0.0001652,2]
[354206598,1740347455479,-892.18,0.0001652,2]
[354206599,1740347455488,-500.0,0.0001652,2]
[354206600,1740347455497,-151.0,0.0001652,2]
[354206601,1740347455506,-574.85,0.0001652,2]
[354206602,1740347455515,-585.18,0.0001652,2]
[354206603,1740347455524,-624.72,0.0001652,2]
[354206604,1740347455534,-2452.52,0.0001652,2]
[354206605,1740347455543,-500.0,0.0001652,2]
[354206606,1740347455553,-418.59755049,0.0001652,2]
[354206607,1740347455562,-500.0,0.0001652,2]
[354206608,1740347455572,-2342.67,0.0001652,2]
[354206609,1740347455581,-500.0,0.0001652,2]
[354206610,1740347455590,-1380.51,0.0001652,2]
[354206611,1740347455599,-1738.71,0.0001652,2]
[354206612,1740347455608,-2242.15,0.0001652,2]
[354206613,1740347455617,-500.0,0.0001652,2]
[354206614,1740347455627,-2819.84,0.0001652,2]
[354206615,1740347455637,-500.0,0.0001652,2]
[354206616,1740347455646,-737.06,0.0001652,2]
[354206617,1740347455655,-2227.44,0.0001652,2]
[354206618,1740347455664,-500.0,0.0001652,2]
[354206619,1740347455673,-771.39,0.0001652,2]
[354206620,1740347455682,-500.0,0.0001652,2]
[354206621,1740347455691,-2071.78,0.0001652,2]
[354206622,1740347455700,-500.0,0.0001652,2]
[354206623,1740347455709,-2405.51,0.0001652,2]
[354206624,1740347455718,-3962.5,0.0001652,2]
[354206625,1740347455727,-158.04,0.0001652,2]
[354206626,1740347455736,-501.98829718,0.0001652,2]
[354206627,1740347455746,-500.0,0.0001652,2]
[354206628,1740347455756,-500.0,0.0001652,2]
[354206629,1740347455765,-825.54,0.0001652,2]
[354206630,1740347455774,-500.0,0.0001652,2]
[354206631,1740347455783,-500.0,0.0001652,2]
[354206632,1740347455793,-1332.03,0.0001652,2]
[354206633,1740347455802,-500.0,0.0001652,2]
[354206634,1740347455811,-500.0,0.0001652,2]
[354206635,1740347455820,-1527.72,0.0001652,2]
[354206636,1740347455830,-500.0,0.0001652,2]
[354206637,1740347455839,-3912.06,0.0001652,2]
[354206638,1740347455848,-2147.38,0.0001652,2]
[354206639,1740347455858,-500.0,0.0001652,2]
[354206640,1740347455867,-500.0,0.0001652,2]
[354206641,1740347455876,-500.0,0.0001652,2]
[354206642,1740347455885,-519.26,0.0001652,2]
[354206643,1740347455894,-2686.27,0.0001652,2]
[354206644,1740347455903,-2552.73,0.0001652,2]
[354206645,1740347455912,-1609.76,0.0001652,2]
[354206646,1740347455922,-589.78087744,0.0001652,2]
[354206647,1740347455931,-500.0,0.0001652,2]
[354206648,1740347455941,-2001.94,0.0001652,2]
[354206649,1740347455950,-500.0,0.0001652,2]
[354206650,1740347455959,-686.2,0.0001652,2]
[354206651,1740347455968,-1467.46,0.0001652,2]
[354206652,1740347455977,-9937.57,0.0001652,2]
[354206653,1740347455986,-3219.82,0.0001652,2]
[354206654,1740347455995,-2087.91,0.0001652,2]
[354206655,1740347456004,-975.83,0.0001652,2]
[354206656,1740347456013,-500.0,0.0001652,2]
[354206657,1740347456023,-500.0,0.0001652,2]
[354206658,1740347456033,-500.0,0.0001652,2]
[354206659,1740347456042,-500.0,0.0001652,2]
[354206660,1740347456051,-4850.8,0.0001652,2]
[354206661,1740347456061,-500.0,0.0001652,2]
[354206662,1740347456070,-500.0,0.0001652,2]
[354206663,1740347456079,-3492.77,0.0001652,2]
[354206664,1740347456088,-500.0,0.0001652,2]
[354206665,1740347456097,-500.0,0.0001652,2]
[354206666,1740347456106,-3980.51,0.0001652,2]
[354206667,1740347456115,-500.0,0.0001652,2]
[354206668,1740347456125,-1285.47,0.0001652,2]
[354206669,1740347456135,-500.0,0.0001652,2]
[354206670,1740347456145,-500.0,0.0001652,2]
[354206671,1740347456155,-500.0,0.0001652,2]
[354206672,1740347456166,-2243.54,0.0001652,2]
[354206673,1740347456177,-6194.77,0.0001652,2]
[354206674,1740347456187,-641.71,0.0001652,2]
[354206675,1740347456198,-500.0,0.0001652,2]
[354206676,1740347456208,-500.0,0.0001652,2]
[354206677,1740347456217,-2679.62,0.0001652,2]
[354206678,1740347456227,-1000.0,0.00016525,2]
[354206679,1740347456236,-1014.022,0.00016536,2]
[354206680,1740347456245,-638.0,0.00016536,2]
[354206681,1740347456255,-569.0,0.00016536,2]
[354206682,1740347456264,-1424.0,0.00016536,2]
[354206683,1740347456273,-1267.0,0.00016536,2]
[354206684,1740347456282,-784.0,0.00016536,2]
[354206685,1740347456291,-907.0,0.00016536,2]
[354206686,1740347456300,-538.0,0.00016536,2]
[354206687,1740347456312,-150.0,0.00016536,2]
[354206688,1740347456322,-1000.0,0.00016543,2]
[354206689,1740347456331,-1000.0,0.0001656,2]
[354206690,1740347456340,-150.0,0.00016561,2]
[354206691,1740347456350,-162.65,0.00016566,2]
[354206692,1740347456359,-6306.50726727,0.00016584,2]
[354206693,1740347456368,-472.76597797,0.00016584,2]
[354206694,1740347456377,-1100.0,0.000166,6]
[354206695,1740347456388,-575.7,0.00016601,2]
[354206696,1740347456398,-500.0,0.00016602,2]
[354206697,1740347456407,-500.0,0.00016602,2]
[354206698,1740347456416,-785.4,0.00016602,2]
[354206699,1740347456425,-500.0,0.00016602,2]
[354206700,1740347456434,-500.0,0.00016602,2]
[354206701,1740347456444,-887.93,0.00016602,2]
[354206702,1740347456453,-500.0,0.00016602,2]
[354206703,1740347456463,-663.9,0.00016602,2]
[354206704,1740347456473,-1048.09,0.00016602,2]
[354206705,1740347456483,-500.0,0.00016602,2]
[354206706,1740347456493,-500.0,0.00016602,2]
[354206707,1740347456502,-500.0,0.00016602,2]
[354206708,1740347456512,-299.3439788,0.00016602,2]
[354206709,1740347456521,-500.0,0.00016602,2]
[354206710,1740347456531,-739.87,0.00016602,2]
[354206711,1740347456540,-151.121887,0.00016602,2]
[354206712,1740347456549,-162.532358,0.00016602,2]
[354206713,1740347456558,-500.0,0.00016602,2]
[354206714,1740347456567,-500.0,0.00016602,2]
[354206715,1740347456576,-502.75,0.00016602,2]
[354206716,1740347456585,-650.26,0.00016602,2]
[354206717,1740347456594,-719.91,0.00016602,2]
[354206718,1740347456603,-596.72,0.00016602,2]
[354206719,1740347456613,-1053.87,0.00016602,2]
[354206720,1740347456622,-500.0,0.00016602,2]
[354206721,1740347456631,-1130.96,0.00016602,2]
[354206722,1740347456640,-1241.26,0.00016602,2]
[354206723,1740347456650,-500.0,0.00016602,2]
[354206724,1740347456659,-500.0,0.00016602,2]
[354206725,1740347456668,-1012.32,0.00016602,2]
[354206726,1740347456677,-500.0,0.00016602,2]
[354206727,1740347456687,-500.0,0.00016602,2]
[354206728,1740347456696,-500.0,0.00016602,2]
[354206729,1740347456705,-500.0,0.00016602,2]
[354206730,1740347456714,-500.0,0.00016602,2]
[354206731,1740347456723,-500.0,0.00016602,2]
[354206732,1740347456732,-500.0,0.00016602,2]
[354206733,1740347456742,-633.63,0.00016602,2]
[354206734,1740347456754,-500.0,0.00016602,2]
[354206735,1740347456763,-500.0,0.00016602,2]
[354206736,1740347456772,-641.2,0.00016602,2]
[354206737,1740347456781,-666.1,0.00016602,2]
[354206738,1740347456791,-500.0,0.00016602,2]
[354206739,1740347456800,-689.82,0.00016602,2]
[354206740,1740347456809,-500.0,0.00016602,2]
[354206741,1740347456817,-1120.9,0.00016602,2]
[354206742,1740347456827,-500.0,0.00016602,2]
[354206743,1740347456835,-500.0,0.00016602,2]
[354206744,1740347456845,-735.36,0.00016602,2]
[354206745,1740347456854,-892.66,0.00016602,2]
[354206746,1740347456863,-500.0,0.00016602,2]
[354206747,1740347456873,-500.0,0.00016602,2]
[354206748,1740347456882,-801.22,0.00016602,2]
[354206749,1740347456892,-500.0,0.00016602,2]
[354206750,1740347456901,-1064.14,0.00016602,2]
[354206751,1740347456911,-500.0,0.00016602,2]
[354206752,1740347456921,-503.06484615,0.00016602,2]
[354206753,1740347456931,-500.0,0.00016602,2]
[354206754,1740347456940,-500.0,0.00016602,2]
[354206755,1740347456951,-500.0,0.00016602,2]
[354206756,1740347456961,-500.0,0.00016602,2]
[354206757,1740347456970,-500.0,0.00016602,2]
[354206758,1740347456979,-1066.66,0.00016602,2]
[354206759,1740347456988,-500.0,0.00016602,2]
[354206760,1740347456998,-1030.43,0.00016602,2]
[354206761,1740347457007,-500.0,0.00016602,2]
[354206762,1740347457016,-694.41,0.00016602,2]
[354206763,1740347457025,-1068.47,0.00016602,2]
[354206764,1740347457035,-500.0,0.00016602,2]
[354206765,1740347457044,-500.0,0.00016602,2]
[354206766,1740347457053,-500.0,0.00016602,2]
[354206767,1740347457063,-500.0,0.00016602,2]
[354206768,1740347457072,-500.0,0.00016602,2]
[354206769,1740347457082,-500.0,0.00016602,2]
[354206770,1740347457091,-665.38,0.00016602,2]
[354206771,1740347457101,-508.33627601,0.00016602,2]
[354206772,1740347457110,-500.0,0.00016602,2]
[354206773,1740347457119,-756.12,0.00016602,2]
[354206774,1740347457129,-500.0,0.00016602,2]
[354206775,1740347457138,-500.0,0.00016602,2]
[354206776,1740347457147,-500.0,0.00016602,2]
[354206777,1740347457156,-500.0,0.00016602,2]
[354206778,1740347457165,-500.0,0.00016602,2]
[354206779,1740347457174,-500.0,0.00016602,2]
[354206780,1740347457183,-556.13,0.00016602,2]
[354206781,1740347457193,-500.0,0.00016602,2]
[354206782,1740347457202,-500.0,0.00016602,2]
[354206783,1740347457211,-689.0,0.00016602,2]
[354206784,1740347457220,-500.0,0.00016602,2]
[354206785,1740347457229,-500.0,0.00016602,2]
[354206786,1740347457238,-500.0,0.00016602,2]
[354206787,1740347457247,-500.0,0.00016602,2]
[354206788,1740347457256,-546.62884183,0.00016602,2]
[354206789,1740347457265,-474.58611235,0.00016602,2]
[354206790,1740347457274,-500.0,0.00016602,2]
[354206791,1740347457283,-500.0,0.00016602,2]
[354206792,1740347457292,-1186.65,0.00016602,2]
[354206793,1740347457301,-935.89,0.00016602,2]
[354206794,1740347457313,-1150.14,0.00016602,2]
[354206795,1740347457322,-882.74,0.00016602,2]
[354206796,1740347457331,-852.67,0.00016602,2]
[354206797,1740347457340,-500.0,0.00016602,2]
[354206798,1740347457351,-1161.44,0.00016602,2]
[354206799,1740347457360,-500.0,0.00016602,2]
[354206800,1740347457369,-500.0,0.00016602,2]
[354206801,1740347457378,-500.0,0.00016602,2]
[354206802,1740347457390,-500.0,0.00016602,2]
[354206803,1740347457399,-500.0,0.00016602,2]
[354206804,1740347457409,-500.0,0.00016602,2]
[354206805,1740347457418,-500.0,0.00016602,2]
[354206806,1740347457428,-265.39082213,0.00016602,2]
[354206807,1740347457437,-674.34,0.00016602,2]
[354206808,1740347457446,-500.0,0.00016602,2]
[354206809,1740347457456,-500.0,0.00016602,2]
[354206810,1740347457465,-500.0,0.00016602,2]
[354206811,1740347457474,-500.0,0.00016602,2]
[354206812,1740347457483,-1418.97,0.00016602,2]
[354206813,1740347457492,-500.0,0.00016602,2]
[354206814,1740347457501,-500.0,0.00016602,2]
[354206815,1740347457511,-500.0,0.00016602,2]
[354206816,1740347457520,-1148.61,0.00016602,2]
[354206817,1740347457529,-1592.05,0.00016602,2]
[354206818,1740347457539,-741.75,0.00016602,2]
[354206819,1740347457548,-500.0,0.00016602,2]
[354206820,1740347457557,-500.0,0.00016602,2]
[354206821,1740347457566,-1024.59,0.00016602,2]
[354206822,1740347457575,-500.0,0.00016602,2]
[354206823,1740347457585,-512.97,0.00016602,2]
[354206824,1740347457594,-500.0,0.00016602,2]
[354206825,1740347457603,-500.0,0.00016602,2]
[354206826,1740347457614,-500.0,0.00016602,2]
[354206827,1740347457624,-1192.49,0.00016602,2]
[354206828,1740347457634,-500.0,0.00016602,2]
[354206829,1740347457643,-500.0,0.00016602,2]
[354206830,1740347457653,-500.0,0.00016602,2]
[354206831,1740347457663,-500.0,0.00016602,2]
[354206832,1740347457672,-152.88061003,0.00016602,2]
[354206833,1740347457682,-384.17285761,0.00016602,2]
[354206834,1740347457694,-500.0,0.00016602,2]
[354206835,1740347457705,-854.18,0.00016602,2]
[354206836,1740347457715,-500.0,0.00016602,2]
[354206837,1740347457725,-1088.76,0.00016602,2]
[354206838,1740347457735,-732.6,0.00016602,2]
[354206839,1740347457746,-659.84,0.00016602,2]
[354206840,1740347457756,-370.72734196,0.00016602,2]
[354206841,1740347457766,-500.0,0.00016602,2]
[354206842,1740347457775,-653.0,0.00016602,2]
[354206843,1740347457784,-500.0,0.00016602,2]
[354206844,1740347457793,-500.0,0.00016602,2]
[354206845,1740347457802,-935.35,0.00016602,2]
[354206846,1740347457811,-500.0,0.00016602,2]
[354206847,1740347457821,-2418.62,0.00016602,2]
[354206848,1740347457830,-502.66521603,0.00016602,2]
[354206849,1740347457839,-500.0,0.00016602,2]
[354206850,1740347457848,-1266.07,0.00016602,2]
[354206851,1740347457857,-1262.09,0.00016602,2]
[354206852,1740347457866,-1280.42,0.00016602,2]
[354206853,1740347457875,-1191.71,0.00016602,2]
[354206854,1740347457884,-500.0,0.00016602,2]
[354206855,1740347457893,-500.0,0.00016602,2]
[354206856,1740347457902,-1980.6,0.00016602,2]
[354206857,1740347457911,-500.0,0.00016602,2]
[354206858,1740347457920,-500.0,0.00016602,2]
[354206859,1740347457929,-1046.04,0.00016602,2]
[354206860,1740347457938,-588.48087905,0.00016602,2]
[354206861,1740347457947,-1060.17,0.00016602,2]
[354206862,1740347457957,-500.0,0.00016602,2]
[354206863,1740347457966,-1318.77,0.00016602,2]
[354206864,1740347457975,-500.0,0.00016602,2]
[354206865,1740347457984,-1665.99,0.00016602,2]
[354206866,1740347457994,-679.96,0.00016602,2]
[354206867,1740347458003,-500.0,0.00016602,2]
[354206868,1740347458012,-1306.65,0.00016602,2]
[354206869,1740347458022,-1240.07,0.00016602,2]
[354206870,1740347458031,-1209.3,0.00016602,2]
[354206871,1740347458040,-500.0,0.00016602,2]
[354206872,1740347458049,-1348.13,0.00016602,2]
[354206873,1740347458058,-500.0,0.00016602,2]
[354206874,1740347458067,-1278.16,0.00016602,2]
[354206875,1740347458076,-638.97660291,0.00016602,2]
[354206876,1740347458086,-644.99,0.00016602,2]
[354206877,1740347458096,-1179.95,0.00016602,2]
[354206878,1740347458105,-500.0,0.00016602,2]
[354206879,1740347458114,-151.0,0.00016602,2]
[354206880,1740347458123,-151.0,0.00016602,2]
[354206881,1740347458132,-1921.45,0.00016602,2]
[354206882,1740347458141,-1250.69,0.00016602,2]
[354206883,1740347458150,-509.10359435,0.00016602,2]
[354206884,1740347458160,-153.555638,0.00016602,2]
[354206885,1740347458291,-551.9,0.00016602,2]
[354206886,1740347458309,-500.0,0.00016602,2]
[354206887,1740347458319,-1419.37,0.00016602,2]
[354206888,1740347458328,-500.0,0.00016602,2]
[354206889,1740347458337,-500.0,0.00016602,2]
[354206890,1740347458346,-500.0,0.00016602,2]
[354206891,1740347458357,-1897.13,0.00016602,2]
[354206892,1740347458366,-500.0,0.00016602,2]
[354206893,1740347458375,-500.0,0.00016602,2]
[354206894,1740347458386,-1759.92,0.00016602,2]
[354206895,1740347458395,-500.0,0.00016602,2]
[354206896,1740347458405,-500.0,0.00016602,2]
[354206897,1740347458414,-1314.27,0.00016602,2]
[354206898,1740347458423,-1121.19,0.00016602,2]
[354206899,1740347458432,-1278.39,0.00016602,2]
[354206900,1740347458441,-500.0,0.00016602,2]
[354206901,1740347458450,-611.72,0.00016602,2]
[354206902,1740347458459,-580.2,0.00016602,2]
[354206903,1740347458468,-1315.22,0.00016602,2]
[354206904,1740347458477,-779.32,0.00016602,2]
[354206905,1740347458486,-1432.94,0.00016602,2]
[354206906,1740347458495,-1936.72,0.00016602,2]
[354206907,1740347458504,-500.0,0.00016602,2]
[354206908,1740347458514,-1025.61,0.00016602,2]
[354206909,1740347458523,-500.0,0.00016602,2]
[354206910,1740347458532,-1040.98,0.00016602,2]
[354206911,1740347458541,-500.0,0.00016602,2]
[354206912,1740347458550,-929.26,0.00016602,2]
[354206913,1740347458560,-1151.71,0.00016602,2]
[354206914,1740347458569,-500.0,0.00016602,2]
[354206915,1740347458578,-502.9213199,0.00016602,2]
[354206916,1740347458588,-1270.37,0.00016602,2]
[354206917,1740347458597,-500.0,0.00016602,2]
[354206918,1740347458606,-1424.52,0.00016602,2]
[354206919,1740347458616,-500.0,0.00016602,2]
[354206920,1740347458625,-500.0,0.00016602,2]
[354206921,1740347458634,-915.21,0.00016602,2]
[354206922,1740347458644,-500.0,0.00016602,2]
[354206923,1740347458653,-1105.89,0.00016602,2]
[354206924,1740347458662,-603.72,0.00016602,2]
[354206925,1740347458671,-1031.49,0.00016602,2]
[354206926,1740347458681,-894.79,0.00016602,2]
[354206927,1740347458690,-500.0,0.00016602,2]
[354206928,1740347458699,-2151.71,0.00016602,2]
[354206929,1740347458709,-500.0,0.00016602,2]
[354206930,1740347458718,-1319.38,0.00016602,2]
[354206931,1740347458728,-500.0,0.00016602,2]
[354206932,1740347458739,-701.18,0.00016602,2]
[354206933,1740347458750,-1071.39,0.00016602,2]
[354206934,1740347458759,-500.0,0.00016602,2]
[354206935,1740347458769,-1446.52,0.00016602,2]
[354206936,1740347458779,-652.77,0.00016602,2]
[354206937,1740347458788,-1605.38,0.00016602,2]
[354206938,1740347458799,-523.02,0.00016602,2]
[354206939,1740347458810,-897.04,0.00016602,2]